bitfinex/quotes_ETHUSD_20250813
["timestamp","ask_amount","ask_price","bid_price","bid_amount"]
[1755086282018,0.0012,4680.1,4680.0,10.7337]
[1755086286031,0.0012,4680.1,4680.0,8.0717]
[1755086287822,0.0012,4680.1,4680.0,8.1211]
[1755086288206,0.0012,4680.1,4680.0,0.0008]
[1755086288409,0.0012,4680.1,4680.0,6.239]
[1755086288623,0.0012,4680.1,4680.0,6.2398]
[1755086288783,0.1084,4680.1,4680.0,6.2398]
[1755086289196,0.1084,4680.1,4680.0,6.702]
[1755086289923,0.1084,4680.1,4680.0,8.1471]
[1755086291418,0.1084,4680.1,4680.0,10.8091]
[1755086291714,0.1084,4680.1,4680.0,14.484]
[1755086294093,0.1084,4680.1,4680.0,10.7828]
[1755086294420,1.5534,4680.1,4680.0,11.0218]
[1755086294717,0.27985,4680.1,4680.0,11.0218]
[1755086295488,0.27985,4680.1,4680.0,7.7828]
[1755086295708,0.27985,4680.1,4680.0,11.0218]
[1755086295919,0.1076,4680.1,4680.0,11.0218]
[1755086297441,0.1076,4680.1,4680.0,11.484]
[1755086297641,0.1076,4680.1,4680.0,16.18988441]
[1755086297932,0.0004,4680.1,4680.0,16.18988441]
[1755086298132,0.0004,4680.1,4680.0,15.9291]
[1755086298708,0.0004,4680.1,4680.0,13.2671]
[1755086301536,0.0004,4680.1,4680.0,15.9291]
[1755086302751,0.0004,4680.1,4680.0,14.484]
[1755086303145,0.0004,4680.1,4680.0,15.9291]
[1755086305260,0.0004,4680.1,4680.0,14.484]
[1755086305752,0.0004,4680.1,4680.0,15.9291]
[1755086306152,0.0004,4680.1,4680.0,13.2671]
[1755086306353,0.0004,4680.1,4680.0,22.35619274]
[1755086307822,0.0004,4680.1,4680.0,20.91109274]
[1755086308022,0.0004,4680.1,4680.0,22.35619274]
[1755086308757,0.0004,4680.1,4680.0,22.35519274]
[1755086309153,0.0004,4680.1,4680.0,13.99719274]
[1755086309332,0.0004,4680.1,4680.0,17.23519274]
[1755086311450,0.0004,4680.1,4680.0,23.57109274]
[1755086311652,0.0016,4680.2,4680.0,23.57109274]
[1755086312371,0.0016,4680.2,4680.0,23.10889274]
[1755086312536,0.0016,4680.2,4680.1,0.4662]
[1755086312736,0.0016,4680.2,4680.1,0.467]
[1755086313352,0.0016,4680.2,4680.1,3.2388]
[1755086313654,0.0016,4680.2,4680.1,0.0008]
[1755086313853,0.0016,4680.2,4680.1,3.238]
[1755086316857,0.0016,4680.2,4680.0,8.119]
[1755086317062,0.0016,4680.2,4680.1,3.238]
[1755086317239,0.1088,4680.2,4680.1,3.238]
[1755086317775,0.1088,4680.2,4680.1,3.7042]
[1755086317958,0.1088,4680.2,4680.1,3.705]
[1755086318268,0.1088,4680.2,4680.1,3.2388]
[1755086319976,0.1088,4680.2,4680.1,0.0008]
[1755086320179,0.1088,4680.2,4680.1,3.2388]
[1755086321576,0.1088,4680.2,4680.1,11.486]
[1755086322278,0.0016,4680.2,4680.1,12.8643]
[1755086323964,0.0008,4680.2,4680.1,12.8643]
[1755086324271,0.0008,4680.2,4680.1,10.2023]
[1755086326301,0.0008,4680.2,4680.1,5.0833]
[1755086328754,0.0008,4680.2,4680.1,3.705]
[1755086328954,0.0008,4680.2,4680.1,5.0833]
[1755086330355,0.0008,4680.2,4680.1,0.0008]
[1755086330580,0.0008,4680.2,4680.1,3.2378]
[1755086331266,0.0008,4680.2,4680.1,3.704]
[1755086331476,0.0008,4680.2,4680.1,11.485]
[1755086333778,0.0008,4680.2,4680.1,12.8633]
[1755086335100,0.0008,4680.2,4680.1,11.485]
[1755086336286,0.1072,4680.3,4680.2,3.0]
[1755086336492,0.1072,4680.3,4680.2,3.0008]
[1755086336695,0.1072,4680.3,4680.2,3.467]
[1755086341413,0.1072,4680.3,4680.2,6.129]
[1755086343496,0.1072,4680.3,4680.2,3.0008]
[1755086343685,0.1072,4680.3,4680.2,6.2368]
[1755086344082,0.1072,4680.3,4680.2,3.2368]
[1755086344286,0.1072,4680.3,4680.2,8.0612666]
[1755086344614,0.1072,4680.3,4680.2,8.0399]
[1755086345694,0.1072,4680.3,4680.2,6.6836]
[1755086345896,0.1072,4680.3,4680.2,8.0399]
[1755086346290,0.1072,4680.3,4680.2,4.8039]
[1755086346494,0.1072,4680.3,4680.2,8.0399]
[1755086347082,0.002,4680.6,4680.3,3.0]
[1755086347308,0.1092,4680.6,4680.5,12.08909274]
[1755086347919,0.1092,4680.6,4680.5,13.89219274]
[1755086348412,0.002,4680.6,4680.5,13.89219274]
[1755086348715,0.0012,4680.7,4680.5,11.10814435]
[1755086349013,0.0012,4680.7,4680.6,5.0391]
[1755086349179,0.002,4681.2,4680.6,5.0391]
[1755086349385,0.002,4681.2,4681.1,9.08909274]
[1755086349614,0.002,4681.2,4681.1,12.32509274]
[1755086349982,0.002,4681.2,4681.1,14.23539274]
[1755086351413,0.002,4681.2,4681.1,16.89739274]
[1755086351583,0.002,4681.2,4681.1,25.01639274]
[1755086351785,0.002,4681.2,4681.1,14.1242]
[1755086351984,0.002,4681.2,4681.1,14.017]
[1755086352919,0.002,4681.2,4681.1,8.355]
[1755086353225,0.1092,4681.2,4681.1,8.3558]
[1755086353588,0.1092,4681.2,4681.1,11.3558]
[1755086353788,0.1092,4681.2,4681.1,11.8026]
[1755086354321,0.1092,4681.2,4681.1,13.1589]
[1755086354898,0.1092,4681.2,4681.1,11.8026]
[1755086355195,0.002,4681.2,4681.1,13.1589]
[1755086355397,0.002,4681.2,4681.1,6.6836]
[1755086355790,1.2909,4683.8,4681.2,0.51193186]
[1755086356131,1.2909,4684.2,4681.9,3.0]
[1755086356307,0.1064,4683.3,4683.1,9.08909274]
[1755086356486,0.1064,4683.3,4683.2,6.6818]
[1755086356702,0.1064,4683.5,4683.2,8.0381]
[1755086356902,0.1064,4683.5,4683.2,6.235]
[1755086358407,0.1064,4683.5,4683.2,6.2358]
[1755086359742,0.1064,4683.5,4683.2,3.0008]
[1755086359942,0.1064,4683.5,4683.3,3.235]
[1755086360543,0.1064,4683.5,4683.4,3.0]
[1755086360848,0.1056,4683.5,4683.4,3.0]
[1755086361409,0.1056,4683.5,4683.4,10.779]
[1755086361615,0.1056,4683.5,4683.4,11.2258]
[1755086362347,0.1056,4683.5,4683.4,11.2266]
[1755086362649,0.1056,4683.5,4683.4,10.7798]
[1755086367226,0.1056,4683.5,4683.4,8.1188]
[1755086367429,1.3965,4683.5,4683.4,11.3528]
[1755086367925,0.1056,4683.5,4683.4,6.2348]
[1755086368635,0.0556,4683.5,4683.4,6.2348]
[1755086371424,0.0556,4683.5,4683.4,14.0108]
[1755086372167,0.0556,4683.5,4683.4,10.7768]
[1755086372464,0.0556,4683.5,4683.4,14.0108]
[1755086372847,0.0548,4683.5,4683.4,14.0108]
[1755086374343,0.0548,4683.5,4683.4,14.4469]
[1755086375077,0.1064,4683.5,4683.4,15.7952]
[1755086375234,0.1064,4683.5,4683.4,14.0108]
[1755086376575,0.1064,4683.5,4683.4,5.1168]
[1755086376738,0.1064,4683.5,4683.4,8.3508]
[1755086376937,1.4117,4683.5,4683.4,8.3508]
[1755086377243,0.1064,4683.5,4683.4,5.1168]
[1755086377449,1.4117,4683.5,4683.4,8.3508]
[1755086377648,0.1064,4683.5,4683.4,8.3508]
[1755086380763,0.1064,4683.5,4683.4,5.1168]
[1755086381244,0.1064,4683.5,4683.4,8.3508]
[1755086381445,0.1064,4683.5,4683.4,11.0108]
[1755086382449,0.1064,4683.5,4683.4,2.6608]
[1755086382655,0.1064,4683.5,4683.4,11.0108]
[1755086384986,0.1056,4683.5,4683.4,11.0108]
[1755086385664,0.1056,4683.5,4683.4,7.7768]
[1755086386175,0.1056,4683.5,4683.4,11.0108]
[1755086386700,0.55,4684.1,4683.4,21.88429274]
[1755086386983,0.1064,4683.5,4683.4,20.09989274]
[1755086387352,0.1064,4683.5,4683.4,23.53599274]
[1755086387552,0.1064,4683.5,4683.4,24.88429274]
[1755086389780,0.1064,4683.5,4683.4,15.7952]
[1755086390887,0.0564,4683.5,4683.4,11.7869]
[1755086391452,0.0564,4683.5,4683.4,14.4469]
[1755086391650,0.1064,4683.5,4683.4,14.0108]
[1755086392282,0.1064,4683.5,4683.4,14.4469]
[1755086392651,0.1064,4683.5,4683.4,14.0108]
[1755086392857,0.1084,4683.5,4683.4,14.0108]
[1755086393688,0.1084,4683.5,4683.4,14.4469]
[1755086394180,0.1084,4683.5,4683.4,7.7768]
[1755086394401,0.1084,4683.5,4683.4,11.0108]
[1755086396392,0.1084,4683.5,4683.4,8.2129]
[1755086396580,0.1084,4683.5,4683.4,11.4469]
[1755086396761,0.1084,4683.5,4683.4,11.4459]
[1755086397188,0.1076,4683.5,4683.4,11.4459]
[1755086397595,0.1076,4683.5,4683.4,11.0098]
[1755086399491,0.1076,4683.5,4683.4,7.7768]
[1755086399785,0.1076,4683.5,4683.4,11.0098]
[1755086401464,0.1084,4683.5,4683.4,8.349]
[1755086401691,1.071,4683.5,4683.4,5.116]
[1755086401860,0.1084,4683.5,4683.4,8.349]
[1755086402058,0.1084,4683.5,4683.4,8.8123]
[1755086403191,0.002,4683.5,4683.4,13.1139]
[1755086403362,0.002,4684.5,4683.4,13.62583186]
[1755086403563,0.002,4684.5,4683.9,9.08909274]
[1755086403761,0.002,4684.5,4684.0,3.241]
[1755086403960,0.002,4684.5,4684.0,5.0059]
[1755086404161,0.002,4684.5,4684.1,1.7649]
[1755086404361,0.002,4684.5,4684.2,3.241]
[1755086404594,0.002,4684.5,4684.2,5.0059]
[1755086404894,0.002,4684.5,4684.3,0.4633]
[1755086405061,0.002,4684.5,4684.4,3.241]
[1755086405268,0.002,4684.5,4684.4,0.4633]
[1755086405484,0.002,4684.5,4684.4,3.7043]
[1755086406401,0.002,4684.5,4684.4,5.0059]
[1755086408195,0.002,4684.5,4684.4,17.09499274]
[1755086410407,0.002,4685.5,4684.5,3.0]
[1755086410696,0.002,4685.5,4685.4,9.08909274]
[1755086410901,0.002,4685.5,4685.4,12.32909274]
[1755086411265,0.002,4685.5,4685.4,14.09399274]
[1755086411465,0.002,4685.5,4685.4,22.11362274]
[1755086411689,0.002,4685.5,4685.4,21.87079274]
[1755086412099,0.002,4685.5,4685.4,8.2401]
[1755086412397,0.002,4685.5,4685.4,11.4801]
[1755086412996,0.002,4685.5,4685.4,11.3801]
[1755086413182,0.002,4685.5,4685.4,11.0158]
[1755086413511,0.002,4685.5,4685.4,12.3174]
[1755086413677,0.002,4685.5,4685.4,18.74649274]
[1755086414105,0.002,4685.5,4685.4,21.74649274]
[1755086414270,0.002,4685.5,4685.4,16.63049274]
[1755086415068,0.002,4685.5,4685.4,7.5414]
[1755086415307,0.002,4685.5,4685.4,8.0047]
[1755086416184,0.002,4685.5,4685.4,3.2408]
[1755086416698,1.7837,4685.5,4685.4,3.2408]
[1755086417515,1.7837,4685.5,4685.4,0.0008]
[1755086418081,0.55,4685.4,4683.5,0.4633]
[1755086418422,0.1064,4683.7,4683.6,6.242]
[1755086418614,0.1064,4683.7,4683.6,3.242]
[1755086418919,0.1064,4683.7,4683.6,3.7053]
[1755086419416,0.1064,4683.7,4683.6,5.0069]
[1755086420849,0.55,4685.4,4683.6,5.0069]
[1755086421139,0.1064,4684.1,4683.8,3.0]
[1755086421335,0.1064,4684.1,4683.9,5.0069]
[1755086421487,0.1064,4684.1,4684.0,7.774]
[1755086421696,0.1064,4684.1,4684.0,7.7748]
[1755086422384,0.1064,4684.1,4684.0,8.2381]
[1755086423016,0.1064,4684.1,4684.0,11.0168]
[1755086424418,0.1064,4684.1,4684.0,11.4801]
[1755086426117,0.1064,4684.1,4684.0,12.7817]
[1755086426926,0.1064,4684.1,4684.0,11.4801]
[1755086427400,0.1064,4684.1,4684.0,11.0168]
[1755086429507,0.1064,4684.1,4684.0,11.4719]
[1755086429799,0.1064,4684.1,4684.0,11.0168]
[1755086431745,0.1064,4684.1,4684.0,11.0158]
[1755086434234,0.1064,4684.1,4684.0,7.7748]
[1755086434455,0.1064,4684.1,4684.0,11.0148]
[1755086435518,0.1064,4684.1,4684.0,11.0158]
[1755086440148,0.1064,4684.1,4684.0,7.7758]
[1755086440492,0.1064,4684.1,4684.0,11.0138]
[1755086440976,0.1064,4684.1,4684.0,7.7758]
[1755086441169,0.1064,4684.1,4684.0,11.0138]
[1755086441873,0.1056,4684.1,4684.0,11.0138]
[1755086446963,0.1056,4684.1,4684.0,11.4689]
[1755086447472,0.1056,4684.1,4684.0,12.6922]
[1755086448477,0.1056,4684.1,4684.0,11.0138]
[1755086451264,0.1056,4684.1,4684.0,7.7758]
[1755086451467,0.6556,4684.1,4684.0,7.7758]
[1755086451671,0.6556,4684.1,4684.0,11.0118]
[1755086451875,0.28908,4684.1,4684.0,11.0118]
[1755086452480,0.1056,4684.1,4684.0,11.0118]
[1755086452880,0.6056,4684.1,4684.0,11.0118]
[1755086453472,0.6056,4684.1,4684.0,7.7758]
[1755086453672,0.6056,4684.1,4684.0,11.0118]
[1755086454778,0.6048,4684.1,4684.0,11.0118]
[1755086455092,0.7832,4684.1,4684.0,11.0118]
[1755086456897,0.7852,4684.1,4684.0,11.0108]
[1755086457800,0.1084,4684.1,4684.0,11.0108]
[1755086460901,0.6584,4684.1,4684.0,7.7758]
[1755086461067,1.7935,4684.1,4684.0,8.35]
[1755086461273,0.5492,4684.0,4683.5,0.001]
[1755086461580,0.19985898,4683.9,4683.6,5.116]
[1755086461765,0.099,4683.8,4683.6,5.116]
[1755086462086,0.1064,4683.7,4683.5,0.001]
[1755086462292,1.0734,4683.7,4683.5,0.001]
[1755086462469,1.0734,4683.7,4683.6,8.35]
[1755086462470,1.09398898,4683.7,4683.6,8.35]
[1755086462674,1.1829989,4683.7,4683.6,5.116]
[1755086463410,1.75358788,4683.7,4683.6,5.116]
[1755086463604,0.55,4683.6,4682.9,0.001]
[1755086463808,0.02058898,4683.5,4683.1,3.235]
[1755086463985,0.6564,4683.1,4682.9,0.001]
[1755086464392,1.6234,4683.1,4683.0,2.891]
[1755086464707,0.55,4683.0,4681.7,0.4602]
[1755086465003,0.6564,4682.6,4681.7,0.4602]
[1755086465584,0.7554,4682.6,4681.7,0.4602]
[1755086465989,0.7554,4682.6,4682.5,3.237]
[1755086466187,0.7143989,4682.6,4682.5,3.237]
[1755086466388,0.1064,4682.6,4682.5,4.9657]
[1755086466994,0.002,4684.1,4682.5,4.9657]
[1755086466995,0.002,4684.1,4682.5,7.9657]
[1755086467179,0.002,4684.1,4683.3,9.0725037]
[1755086467495,0.002,4684.1,4683.9,9.0725037]
[1755086467693,0.002,4684.1,4684.0,3.239]
[1755086467891,0.1084,4684.1,4684.0,3.239]
[1755086468100,0.1084,4684.1,4684.0,4.9677]
[1755086471495,0.1084,4684.1,4684.0,12.7457]
[1755086471804,0.1084,4684.1,4684.0,12.7465]
[1755086473182,0.1084,4684.1,4684.0,6.8465]
[1755086473385,0.1084,4684.1,4684.0,10.0845]
[1755086473689,0.1084,4684.1,4684.0,6.8465]
[1755086473901,0.1084,4684.1,4684.0,8.3548]
[1755086474106,0.6584,4684.1,4684.0,8.3548]
[1755086474328,0.6584,4684.1,4684.0,5.1178]
[1755086474483,1.0662,4684.1,4684.0,8.3578]
[1755086474684,1.25962,4684.1,4684.0,8.3578]
[1755086474890,0.85182,4684.1,4684.0,8.3578]
[1755086475790,0.6584,4684.1,4684.0,8.3578]
[1755086479920,0.6584,4684.1,4684.0,8.3558]
[1755086480222,0.55,4684.0,4683.4,0.05]
[1755086480422,0.1064,4683.5,4683.4,0.05]
[1755086480732,0.6564,4683.5,4683.4,3.289]
[1755086480896,0.7648789,4683.5,4683.4,3.289]
[1755086481297,0.7648789,4683.5,4683.4,0.05]
[1755086481503,0.7648789,4683.5,4683.4,8.404]
[1755086481822,0.7648789,4683.5,4683.4,8.4048]
[1755086482029,0.7648789,4683.5,4683.4,5.1668]
[1755086482229,1.1726789,4683.5,4683.4,5.1668]
[1755086482396,1.1726789,4683.5,4683.4,8.4048]
[1755086482591,1.1726789,4683.5,4683.4,0.0508]
[1755086482827,0.55,4683.4,4683.3,0.001]
[1755086482992,0.75194789,4683.4,4683.3,8.357]
[1755086483198,1.8046,4683.4,4683.3,5.117]
[1755086483695,1.2546,4683.4,4683.3,5.117]
[1755086484094,0.55,4683.3,4682.4,0.001]
[1755086484333,0.57058898,4683.3,4682.6,3.238]
[1755086484535,0.55,4683.3,4682.4,0.001]
[1755086484708,0.55,4683.1,4682.7,3.238]
[1755086485108,0.6564,4682.8,4682.7,3.238]
[1755086485504,0.6564,4682.8,4682.4,0.001]
[1755086486034,0.6564,4682.8,4682.6,3.238]
[1755086486635,0.6564,4682.8,4682.5,0.001]
[1755086486810,0.02058898,4682.7,4682.6,3.238]
[1755086487146,0.55,4682.7,4682.6,3.238]
[1755086487304,0.1064,4682.8,4682.5,0.001]
[1755086487509,0.1064,4682.8,4682.6,3.238]
[1755086488945,0.55,4682.7,4682.6,3.238]
[1755086489737,0.002,4684.6,4682.6,4.908]
[1755086490036,0.55,4684.4,4682.7,1.67]
[1755086490448,0.55,4684.4,4682.8,1.67]
[1755086490837,0.02058898,4684.0,4682.8,1.67]
[1755086491009,0.02058898,4684.0,4682.6,3.238]
[1755086491209,0.02058898,4684.0,4682.9,1.67]
[1755086491404,0.02258898,4684.1,4683.0,11.018]
[1755086491631,0.55,4684.0,4683.0,11.018]
[1755086492110,0.55,4684.0,4683.0,7.778]
[1755086492331,0.02058898,4683.9,4683.1,3.24]
[1755086493142,0.02058898,4683.9,4683.0,7.778]
[1755086493311,0.02058898,4683.9,4683.1,3.239]
[1755086493511,0.55,4683.7,4683.1,3.239]
[1755086494607,0.55,4683.7,4683.1,4.909]
[1755086495245,0.55,4683.7,4683.2,0.4489]
[1755086495409,0.55,4683.7,4683.3,1.67]
[1755086495832,0.55,4683.7,4683.4,4.908]
[1755086496033,0.002,4684.1,4683.4,4.908]
[1755086496319,0.002,4684.1,4683.5,1.67]
[1755086498541,0.002,4684.1,4683.5,0.4489]
[1755086498748,0.002,4684.1,4683.5,1.67]
[1755086499420,0.552,4684.1,4683.5,1.67]
[1755086499625,0.6564,4683.6,4683.5,1.67]
[1755086500442,0.6564,4683.6,4683.5,6.787]
[1755086501710,0.6564,4683.6,4683.5,6.7878]
[1755086502341,0.6564,4683.6,4683.5,5.1178]
[1755086502649,0.6564,4683.6,4683.5,10.0238]
[1755086510056,0.6564,4683.6,4683.5,6.7878]
[1755086510244,0.6564,4683.6,4683.5,10.0228]
[1755086510587,0.6564,4683.6,4683.5,6.7878]
[1755086510726,0.6564,4683.6,4683.5,10.0228]
[1755086511620,0.6556,4683.6,4683.5,10.0228]
[1755086518162,0.1056,4683.6,4683.5,10.0228]
[1755086519346,0.6556,4683.6,4683.5,10.0228]
[1755086521776,0.1056,4683.6,4683.5,10.0228]
[1755086522178,0.1076,4683.6,4683.5,10.0228]
[1755086523858,0.1068,4683.6,4683.5,10.0228]
[1755086524499,0.002,4683.6,4683.5,19.0746037]
[1755086525245,0.002,4683.6,4683.5,6.7671]
[1755086525442,0.002,4683.6,4683.5,8.3528]
[1755086525645,1.0116,4683.6,4683.5,5.1178]
[1755086525887,1.0116,4683.6,4683.5,5.117]
[1755086526044,1.0116,4683.6,4683.5,8.352]
[1755086526246,0.75154534,4683.6,4683.5,8.352]
[1755086526447,0.75154534,4683.6,4683.5,5.117]
[1755086526753,0.552,4683.6,4683.5,8.352]
[1755086527767,0.552,4683.6,4683.5,8.7887]
[1755086528087,0.552,4683.6,4683.5,10.0013]
[1755086528969,0.002,4683.6,4683.5,4.8843]
[1755086531493,0.002,4683.6,4683.5,12.6623]
[1755086531861,0.002,4683.6,4683.5,12.6631]
[1755086533795,0.002,4683.6,4683.5,15.6631]
[1755086533968,0.002,4683.6,4683.5,13.0021]
[1755086534159,0.002,4683.6,4683.5,13.28184274]
[1755086534564,0.002,4683.6,4683.5,13.38824274]
[1755086534867,0.002,4683.6,4683.5,13.1085]
[1755086535270,0.002,4684.1,4683.6,3.0]
[1755086535568,0.002,4684.1,4684.0,12.1789037]
[1755086535768,0.002,4684.1,4684.0,15.4139037]
[1755086535982,0.002,4684.1,4684.0,17.0632037]
[1755086537476,0.002,4684.1,4684.0,17.0640037]
[1755086539566,0.002,4684.1,4684.0,17.16997926]
[1755086540693,0.002,4684.6,4684.1,3.0]
[1755086540996,0.002,4684.6,4684.5,12.1789037]
[1755086541296,0.002,4684.6,4684.5,15.69264644]
[1755086541506,0.002,4684.6,4684.5,25.11794644]
[1755086542194,0.002,4685.1,4684.6,3.0]
[1755086542420,0.002,4685.1,4685.0,12.0725037]
[1755086542573,0.002,4685.1,4685.0,15.3065037]
[1755086542767,0.002,4685.1,4685.0,17.0630037]
[1755086550400,0.002,4685.1,4685.0,0.1072]
[1755086550569,0.002,4685.1,4685.0,0.0008]
[1755086550919,1.2091,4685.1,4685.0,3.2458]
[1755086551087,1.33021,4685.1,4685.0,3.2458]
[1755086551472,1.33021,4685.1,4685.0,11.0188]
[1755086551783,1.32941,4685.1,4685.0,11.0188]
[1755086552173,0.4731,4685.1,4685.0,11.0188]
[1755086553471,0.4731,4685.1,4685.0,7.7738]
[1755086553677,1.2083,4685.1,4685.0,11.0188]
[1755086554105,1.0231,4685.1,4685.0,7.7738]
[1755086554310,1.7583,4685.1,4685.0,11.0188]
[1755086554580,1.93433,4685.1,4685.0,11.0188]
[1755086555209,1.38433,4685.1,4685.0,11.0188]
[1755086555384,1.93433,4685.1,4685.0,7.7738]
[1755086555777,1.19913,4685.1,4685.0,7.7738]
[1755086556012,1.93433,4685.1,4685.0,11.0178]
[1755086558407,1.93433,4685.1,4685.0,11.0188]
[1755086558627,1.38433,4685.1,4685.0,11.0188]
[1755086558826,1.93433,4685.1,4685.0,11.0188]
[1755086560252,1.19913,4685.1,4685.0,11.0188]
[1755086560644,1.30553,4685.1,4685.0,11.0188]
[1755086560838,0.6576,4685.1,4685.0,11.0188]
[1755086563966,0.6568,4685.1,4685.0,11.0188]
[1755086565551,0.6568,4685.1,4685.0,11.0198]
[1755086567747,0.6568,4685.1,4685.0,12.2408]
[1755086567959,0.1068,4685.1,4685.0,11.0198]
[1755086568335,0.1068,4685.1,4685.0,7.7748]
[1755086568559,0.1068,4685.1,4685.0,11.0168]
[1755086569418,0.6568,4685.1,4685.0,11.0168]
[1755086569855,0.6568,4685.1,4685.0,11.0158]
[1755086571349,0.1068,4685.1,4685.0,11.0158]
[1755086572023,0.1068,4685.1,4685.0,12.7086]
[1755086574500,0.1068,4685.1,4685.0,6.8086]
[1755086574778,0.1068,4685.1,4685.0,10.0496]
[1755086574973,0.1068,4685.1,4685.0,6.8086]
[1755086575166,0.1068,4685.1,4685.0,4.9346]
[1755086575944,0.106,4685.1,4685.0,4.9346]
[1755086577981,0.1064,4685.1,4685.0,4.9346]
[1755086579347,0.1064,4685.1,4685.0,0.0018]
[1755086579573,0.1064,4685.1,4685.0,3.2408]
[1755086580071,0.1064,4685.1,4685.0,4.8468]
[1755086581569,0.1064,4685.1,4685.0,12.6208]
[1755086585387,0.1064,4685.1,4685.0,6.7228]
[1755086585576,0.1064,4685.1,4685.0,9.9598]
[1755086585754,0.1064,4685.1,4685.0,5.1168]
[1755086585956,0.1064,4685.1,4685.0,8.3528]
[1755086587855,0.1064,4685.1,4685.0,3.2378]
[1755086588087,0.1056,4685.1,4685.0,3.2378]
[1755086588751,0.1076,4685.1,4685.0,3.2378]
[1755086589491,0.1076,4685.1,4685.0,0.0018]
[1755086589688,0.1076,4685.1,4685.0,3.2378]
[1755086590188,0.1076,4685.1,4685.0,0.0018]
[1755086590375,0.1076,4685.1,4685.0,3.2368]
[1755086590972,0.1076,4685.1,4685.0,4.8428]
[1755086591574,0.1076,4685.1,4685.0,12.6168]
[1755086593795,0.6576,4685.1,4685.0,7.7758]
[1755086593984,1.1107,4685.1,4685.0,11.0138]
[1755086594299,0.28854,4685.1,4685.0,11.0138]
[1755086594596,0.18294,4685.1,4685.0,11.0138]
[1755086595167,1.18604,4685.1,4685.0,11.0138]
[1755086595792,1.18604,4685.1,4685.0,7.7758]
[1755086596201,1.18604,4685.1,4685.0,11.0128]
[1755086597007,0.73294,4685.1,4685.0,11.0128]
[1755086597318,0.552,4685.1,4685.0,11.0128]
[1755086598020,0.002,4685.1,4685.0,11.0128]
[1755086599115,0.002,4685.1,4685.0,11.0118]
[1755086599325,1.0051,4685.1,4685.0,7.7758]
[1755086599633,1.0051,4685.1,4685.0,11.0118]
[1755086599831,1.17548,4685.1,4685.0,7.7758]
[1755086599999,1.17548,4685.1,4685.0,11.0118]
[1755086600317,1.17468,4685.1,4685.0,7.7758]
[1755086600528,0.72158,4685.1,4685.0,11.0118]
[1755086600757,1.0043,4685.1,4685.0,11.0118]
[1755086601028,1.701,4685.1,4685.0,11.0118]
[1755086601818,1.0043,4685.1,4685.0,11.0118]
[1755086602816,1.701,4685.1,4685.0,11.0118]
[1755086603015,1.701,4685.1,4685.0,7.7758]
[1755086603217,1.701,4685.1,4685.0,11.0118]
[1755086603424,1.8713,4685.1,4685.0,11.0118]
[1755086603595,1.1746,4685.1,4685.0,11.0118]
[1755086604298,1.1746,4685.1,4685.0,8.3528]
[1755086604496,0.8279,4685.1,4685.0,8.3528]
[1755086604703,1.281,4685.1,4685.0,8.3528]
[1755086604897,1.281,4685.1,4685.0,5.1168]
[1755086605204,1.9777,4685.1,4685.0,8.3528]
[1755086607304,1.281,4685.1,4685.0,8.3528]
[1755086607915,0.8279,4685.1,4685.0,8.3528]
[1755086608516,0.6576,4685.1,4685.0,8.3518]
[1755086608716,0.6576,4685.1,4685.0,5.1168]
[1755086608915,0.6576,4685.1,4685.0,8.3528]
[1755086609228,0.6576,4685.1,4685.0,5.1168]
[1755086609537,0.6576,4685.1,4685.0,8.3528]
[1755086609702,0.77078,4685.1,4685.0,8.3528]
[1755086611749,0.66438,4685.1,4685.0,9.9721]
[1755086611906,0.6576,4685.1,4685.0,9.9721]
[1755086612306,0.6568,4685.1,4685.0,9.9721]
[1755086612828,0.1068,4685.1,4685.0,9.9721]
[1755086617206,0.1068,4685.1,4685.0,12.9721]
[1755086621113,0.1068,4685.1,4685.0,7.8571]
[1755086621545,0.1068,4685.1,4685.0,15.6311]
[1755086623355,0.0004,4685.1,4685.0,15.6311]
[1755086624447,0.0016,4685.5,4685.0,15.6311]
[1755086624648,0.0016,4685.5,4685.1,1.6193]
[1755086624849,0.0016,4685.5,4685.2,3.234]
[1755086625047,0.108,4685.5,4685.2,3.234]
[1755086625246,0.108,4685.5,4685.3,1.6193]
[1755086625550,0.108,4685.5,4685.4,3.234]
[1755086625751,0.108,4685.5,4685.4,4.8533]
[1755086627525,0.108,4685.5,4685.4,1.6193]
[1755086627720,0.108,4685.5,4685.4,4.8533]
[1755086628453,0.0016,4685.5,4685.4,4.8533]
[1755086628825,0.0016,4685.5,4685.4,7.8533]
[1755086630058,0.0016,4685.5,4685.4,7.8541]
[1755086631560,0.0016,4685.5,4685.4,15.6271]
[1755086632372,0.0016,4685.5,4685.4,13.0745]
[1755086632744,0.0016,4685.5,4685.4,13.6245]
[1755086634468,0.0016,4685.5,4685.4,10.3905]
[1755086634640,0.0016,4685.5,4685.4,13.6245]
[1755086635176,0.0016,4685.5,4685.4,8.5105]
[1755086636366,0.1064,4687.0,4685.5,3.0]
[1755086636545,0.55,4688.2,4686.8,3.0]
[1755086636546,0.4722,4688.2,4686.8,3.0]
[1755086636732,0.6566,4688.0,4686.9,3.234]